bitfinex/quotes_ETHUSD_20241019
["timestamp","ask_amount","ask_price","bid_price","bid_amount"]
[1729322696820,3.78379,2642.9,2642.5,0.8326]
[1729322703640,4.54836,2643.0,2642.5,0.8326]
[1729322703854,3.78388,2642.8,2642.5,0.8326]
[1729322706748,8.33206,2643.0,2642.5,0.8326]
[1729322706909,7.56736,2643.0,2642.5,2.02520348]
[1729322707851,7.56733,2643.0,2642.5,2.02520348]
[1729322708824,3.78372,2642.9,2642.5,2.02520348]
[1729322715326,3.78372,2642.9,2642.6,0.56728091]
[1729322715540,3.78372,2642.9,2642.5,2.02520348]
[1729322715949,3.78372,2642.9,2642.6,0.56728091]
[1729322716161,3.78372,2642.9,2642.5,2.02520348]
[1729322716320,3.78372,2642.9,2642.6,0.56734012]
[1729322716525,3.78372,2642.9,2642.5,2.02520348]
[1729322716727,3.78372,2642.9,2642.6,0.56733538]
[1729322716934,3.78372,2642.9,2642.5,2.02520348]
[1729322717149,3.78372,2642.9,2642.6,0.56733545]
[1729322717318,3.78372,2642.9,2642.5,2.02520348]
[1729322717519,3.78372,2642.9,2642.6,1.76001465]
[1729322717732,3.78372,2642.9,2642.6,1.19260348]
[1729322717931,3.78372,2642.9,2642.5,2.02520348]
[1729322718164,3.78372,2642.9,2642.6,1.76001468]
[1729322718332,3.78372,2642.9,2642.6,1.19260348]
[1729322718530,3.78372,2642.9,2642.5,2.02520348]
[1729322718747,3.78372,2642.9,2642.6,0.56745872]
[1729322719051,3.78372,2642.9,2642.7,0.2837293]
[1729322719272,3.78372,2642.9,2642.8,0.2837293]
[1729322719618,3.78372,2642.9,2642.8,0.28372717]
[1729322720057,3.78372,2642.9,2642.8,0.73769063]
[1729322725150,3.78372,2642.9,2642.6,1.19260348]
[1729322725334,3.78372,2642.9,2642.8,0.73764822]
[1729322729174,3.78366,2643.0,2642.8,0.73764822]
[1729322729326,3.78366,2643.0,2642.9,0.28371085]
[1729322732935,3.78366,2643.0,2642.8,0.8171]
[1729322733136,3.78372,2642.9,2642.8,0.8171]
[1729322733338,3.78372,2642.9,2642.8,1.27101178]
[1729322736752,3.78372,2642.9,2642.8,1.27103744]
[1729322738543,3.78372,2642.9,2642.8,0.8171]
[1729322738741,3.78372,2642.9,2642.8,1.27104546]
[1729322744605,3.78372,2642.9,2642.8,1.27107778]
[1729322746122,4.37577574,2642.9,2642.8,0.45397778]
[1729322746866,0.59205574,2642.9,2642.6,2.02310348]
[1729322747301,4.37579574,2642.9,2642.6,2.02310348]
[1729322749919,0.59205574,2642.9,2642.7,0.45399435]
[1729322750468,4.37578574,2642.9,2642.7,0.45399435]
[1729322762329,4.37578574,2642.9,2642.6,2.02310348]
[1729322762626,0.59205574,2642.9,2642.7,0.56754947]
[1729322762789,0.59205574,2642.9,2642.7,1.19260348]
[1729322764290,0.59205574,2642.9,2642.6,6.54698363]
[1729322764515,0.59205574,2642.9,2642.8,0.7781]
[1729322769051,0.59205574,2642.9,2642.8,5.12936194]
[1729322769252,0.59205574,2642.9,2642.8,6.35480883]
[1729322771252,4.53458,2643.4,2642.8,6.35470577]
[1729322771452,0.5919936,2643.2,2642.8,5.78740689]
[1729322772165,0.5919936,2643.2,2642.9,3.78365]
[1729322776178,0.5919936,2643.2,2642.8,5.78739689]
[1729322776339,0.5919936,2643.2,2642.9,0.5421535]
[1729322777088,0.5919936,2643.2,2642.9,4.3258435]
[1729322778148,0.5919936,2643.2,2642.9,0.5421535]
[1729322793084,0.5919936,2643.2,2643.0,0.28345931]
[1729322793290,4.3753736,2643.2,2643.1,0.28345931]
[1729322793601,3.78347,2643.1,2642.7,1.19260348]
[1729322793766,3.78347,2643.1,2642.8,0.28347012]
[1729322793964,3.78347,2643.1,2642.9,0.28347012]
[1729322794271,3.78347,2643.1,2643.0,0.28347012]
[1729322794485,5.10684636,2643.1,2643.0,0.28347012]
[1729322794674,3.78374,2642.9,2642.7,1.19260348]
[1729322795004,3.78374,2642.9,2642.8,0.28349172]
[1729322795360,4.58904,2642.9,2642.8,0.28349172]
[1729322795963,0.8053,2642.9,2642.7,1.19260348]
[1729322796159,3.78386,2642.8,2642.7,1.19260348]
[1729322796465,5.426435,2642.8,2642.7,1.19260348]
[1729322796700,4.58916,2642.8,2642.7,1.19260348]
[1729322797369,3.7846,2642.3,2642.0,0.8253]
[1729322797567,7.56899,2642.4,2642.1,0.28343361]
[1729322797767,7.56899,2642.4,2642.2,0.28343361]
[1729322798000,3.78458,2642.3,2642.0,0.8253]
[1729322798299,3.78458,2642.3,2642.1,0.28343811]
[1729322798503,3.78459,2642.3,2642.2,0.28343811]
[1729322799404,3.78458,2642.3,2642.2,0.28343811]
[1729322800365,3.78446,2642.4,2642.2,0.28343811]
[1729322800366,7.56898,2642.4,2642.2,0.28343811]
[1729322800661,7.56897,2642.4,2642.0,0.8253]
[1729322800866,7.56897,2642.4,2642.1,0.28322809]
[1729322801101,7.56897,2642.4,2642.2,0.28322809]
[1729322801283,7.56897,2642.4,2642.0,0.8253]
[1729322801477,3.78446,2642.4,2642.1,0.28317529]
[1729322801810,3.78446,2642.4,2642.2,0.28317529]
[1729322802019,7.56897,2642.4,2642.0,0.8253]
[1729322802303,7.56897,2642.4,2642.1,0.28317235]
[1729322802516,3.78446,2642.4,2642.2,0.28317235]
[1729322802822,7.56903,2642.4,2642.0,0.8253]
[1729322802962,7.56903,2642.4,2642.1,0.28312789]
[1729322803162,7.56903,2642.4,2642.2,0.28312789]
[1729322803389,4.57876,2642.4,2641.8,4.97781348]
[1729322803711,3.78473,2642.2,2641.9,0.83749955]
[1729322804000,3.78473,2642.2,2642.0,0.28308373]
[1729322804206,3.78473,2642.2,2642.1,0.28308373]
[1729322804883,3.78473,2642.2,2641.7,4.56391]
[1729322805087,3.78473,2642.2,2641.8,0.28304848]
[1729322805414,3.78473,2642.2,2641.9,0.28304848]
[1729322805591,3.78473,2642.2,2642.0,0.28304848]
[1729322805795,3.78473,2642.2,2641.8,0.6039562]
[1729322806197,3.78473,2642.2,2641.9,0.28299352]
[1729322806418,3.78473,2642.2,2642.0,0.28299352]
[1729322806711,3.78473,2642.2,2641.8,0.6039562]
[1729322806883,3.78473,2642.2,2641.9,0.79974268]
[1729322807079,3.78473,2642.2,2642.0,0.28295606]
[1729322807285,3.78473,2642.2,2641.9,0.51678662]
[1729322807909,3.78473,2642.2,2642.0,0.2829145]
[1729322808070,3.78473,2642.2,2641.9,0.51678662]
[1729322808274,3.78473,2642.2,2642.0,0.28290803]
[1729322808504,3.78473,2642.2,2641.9,0.51678662]
[1729322808711,3.78473,2642.2,2642.0,0.28287313]
[1729322809013,3.78473,2642.2,2641.9,0.51678662]
[1729322810274,4.57876,2642.4,2641.9,0.51678662]
[1729322810475,8.36333,2642.4,2641.9,0.51678662]
[1729322810715,3.78461,2642.3,2642.0,0.28281098]
[1729322810910,3.78461,2642.3,2641.9,0.51678662]
[1729322811108,3.78461,2642.3,2642.0,0.43020666]
[1729322812478,3.78461,2642.3,2641.9,0.51678662]
[1729322817624,3.78431,2642.5,2642.1,0.8015]
[1729322819635,4.55276,2642.6,2642.1,4.58635]
[1729322821107,0.7686,2642.6,2642.1,4.58628]
[1729322821632,3.78417,2642.6,2642.1,5.47509266]
[1729322822047,3.78417,2642.6,2642.1,9.25988266]
[1729322822212,3.78417,2642.6,2642.1,5.47509266]
[1729322822538,4.54178,2642.8,2642.1,4.67359266]
[1729322822704,4.54178,2642.8,2642.4,0.8093]
[1729322824928,3.78402,2642.7,2642.4,0.8093]
[1729322825337,4.54178,2642.8,2642.4,0.8093]
[1729322826110,8.32575,2642.8,2642.4,0.8093]
[1729322826323,4.54178,2642.8,2642.4,0.8093]
[1729322827544,7.56373,2642.9,2642.4,4.59365]
[1729322828719,3.78388,2642.8,2642.4,0.8093]
[1729322830150,3.78,2642.9,2642.4,4.59363]
[1729322830455,7.56372,2642.9,2642.4,4.59363]
[1729322831725,0.59209532,2642.8,2642.4,4.59363]
[1729322831913,0.59209532,2642.8,2642.4,5.47670838]
[1729322832113,0.59209532,2642.8,2642.4,4.66740838]
[1729322832317,0.59209532,2642.8,2642.5,0.8093]
[1729322833112,0.59209532,2642.8,2642.6,3.78407]
[1729322833314,0.59209532,2642.8,2642.7,0.8093]
[1729322833559,0.59209532,2642.8,2642.7,1.268636]
[1729322834150,0.59209532,2642.8,2642.7,1.55156277]
[1729322835431,0.59209532,2642.8,2642.7,5.33556277]
[1729322835642,0.59209532,2642.8,2642.7,5.33558832]
[1729322839253,0.59209532,2642.8,2642.7,5.052636]
[1729322839419,0.59209532,2642.8,2642.7,5.33565559]
[1729322841718,3.78,2642.9,2642.8,3.78386]
[1729322842037,0.59201068,2643.2,2642.8,5.75753115]
[1729322842244,0.59201068,2643.2,2642.8,5.47451156]
[1729322844570,0.59201068,2643.2,2642.9,3.78372]
[1729322845783,0.59201068,2643.2,2642.8,1.69065156]
[1729322846081,0.59201068,2643.2,2642.8,5.47448156]
[1729322846241,0.59201068,2643.2,2642.9,0.97176776]
[1729322847072,0.59201068,2643.2,2642.9,4.75545776]
[1729322847858,0.59201068,2643.2,2642.9,0.97176776]
[1729322848667,4.37531068,2643.2,2642.9,0.97176776]
[1729322848981,0.7657,2643.1,2642.7,3.78386]
[1729322849137,0.7657,2643.1,2642.6,1.23121209]
[1729322849138,3.78357,2643.0,2642.4,0.7787]
[1729322849347,3.78372,2642.9,2642.5,0.2828328]
[1729322849543,3.78372,2642.9,2642.4,0.7787]
[1729322849738,3.78372,2642.9,2642.5,0.28284954]
[1729322849942,3.78372,2642.9,2642.4,1.77753813]
[1729322850144,3.78372,2642.9,2642.5,0.28284997]
[1729322850356,3.78372,2642.9,2642.4,5.56195813]
[1729322850569,3.78357,2643.0,2642.5,0.28285798]
[1729322850765,7.56729,2643.0,2642.4,5.56195813]
[1729322851044,7.56729,2643.0,2642.5,1.21749811]
[1729322851297,7.56728,2643.0,2642.6,0.28287376]
[1729322851593,3.78357,2643.0,2642.5,0.93464181]
[1729322852257,3.78357,2643.0,2642.6,0.28289046]
[1729322852480,3.78357,2643.0,2642.5,0.93464181]
[1729322852664,3.78357,2643.0,2642.6,0.28289024]
[1729322852871,7.56723,2643.0,2642.5,4.71893181]
[1729322853058,3.78357,2643.0,2642.6,0.28289027]
[1729322853254,3.78357,2643.0,2642.5,4.71893181]
[1729322853473,3.78357,2643.0,2642.6,0.28291228]
[1729322853671,7.56725,2643.0,2642.5,4.71893181]
[1729322853875,7.56724,2643.0,2642.5,4.71893181]
[1729322854170,3.78376,2642.9,2642.5,0.93464181]
[1729322855288,3.78361,2643.0,2642.6,0.28294589]
[1729322855600,3.78361,2643.0,2642.5,3.78428]
[1729322856292,3.78361,2643.0,2642.6,0.28297806]
[1729322856491,3.78372,2642.9,2642.5,3.78428]
[1729322856695,3.78372,2642.9,2642.6,0.28299195]
[1729322856900,3.78372,2642.9,2642.5,3.78428]
[1729322857191,8.33275,2643.1,2642.6,0.28298719]
[1729322857355,8.33275,2643.1,2642.5,4.619024]
[1729322857560,8.33275,2643.1,2642.6,0.28301723]
[1729322857792,8.33275,2643.1,2642.5,4.619024]
[1729322857962,8.33275,2643.1,2642.6,0.28301227]
[1729322858166,8.33275,2643.1,2642.5,4.619024]
[1729322858357,8.33275,2643.1,2642.6,0.28301223]
[1729322858672,8.33275,2643.1,2642.5,4.619024]
[1729322858873,4.54918,2643.1,2642.6,0.82281049]
[1729322859201,4.54918,2643.1,2642.7,0.28303809]
[1729322859384,4.54918,2643.1,2642.8,0.28303809]
[1729322859587,4.54918,2643.1,2642.6,0.5397724]
[1729322859758,8.33275,2643.1,2642.7,0.28305545]
[1729322859958,8.33275,2643.1,2642.6,0.5397724]
[1729322860175,8.33275,2643.1,2642.7,0.2830558]
[1729322860497,8.33275,2643.1,2642.8,0.2830558]
[1729322860806,8.33275,2643.1,2642.6,0.5397724]
[1729322861023,8.33275,2643.1,2642.7,0.28308267]
[1729322861297,4.54918,2643.1,2642.8,0.28308267]
[1729322861466,4.54918,2643.1,2642.6,4.3239124]
[1729322861668,4.54918,2643.1,2642.7,0.28311314]
[1729322861868,8.33272,2643.1,2642.6,4.3239124]
[1729322862063,8.33272,2643.1,2642.8,0.28311498]
[1729322862298,8.33272,2643.1,2642.5,3.7842]
[1729322862559,8.33272,2643.1,2642.6,1.36792977]
[1729322862706,8.33272,2643.1,2642.7,0.2831532]
[1729322862870,8.33272,2643.1,2642.8,0.2831532]
[1729322863070,8.33272,2643.1,2642.6,0.63173145]
[1729322863271,8.33272,2643.1,2642.7,0.28315771]
[1729322863473,8.33272,2643.1,2642.8,0.28315771]
[1729322863797,8.33272,2643.1,2642.6,0.63173145]
[1729322863991,8.33272,2643.1,2642.7,0.28319823]
[1729322864186,8.33272,2643.1,2642.8,0.28319823]
[1729322864373,8.33272,2643.1,2642.6,0.63173145]
[1729322864572,8.33272,2643.1,2642.7,0.73640151]
[1729322864773,8.33272,2643.1,2642.8,0.28323135]
[1729322864970,8.33272,2643.1,2642.9,0.28323135]
[1729322865165,3.78358,2643.0,2642.7,0.4531689]
[1729322865386,3.78358,2643.0,2642.8,0.2832648]
[1729322865583,3.78358,2643.0,2642.9,0.2832648]
[1729322865778,4.54918,2643.1,2642.9,0.2832648]
[1729322865986,4.54918,2643.1,2642.6,1.41773145]
[1729322866308,4.54918,2643.1,2642.7,0.73648225]
[1729322866309,8.33274,2643.1,2642.7,0.73648225]
[1729322866485,3.78358,2643.0,2642.8,0.2832624]
[1729322866687,3.78358,2643.0,2642.9,0.2832624]
[1729322867783,4.54918,2643.1,2642.9,0.2832624]
[1729322867989,4.54918,2643.1,2642.6,1.41773145]
[1729322867990,8.33272,2643.1,2642.6,1.41773145]
[1729322868189,8.33272,2643.1,2642.7,0.73658333]
[1729322868496,8.33272,2643.1,2642.8,0.28330128]
[1729322868703,8.33272,2643.1,2642.9,0.28330128]
[1729322868892,8.33272,2643.1,2642.6,1.41773145]
[1729322869214,8.33272,2643.1,2642.7,1.3756998]
[1729322869414,8.33272,2643.1,2642.6,1.41773145]
[1729322869708,8.33272,2643.1,2642.7,0.28335831]
[1729322869913,8.33272,2643.1,2642.8,0.28335831]
[1729322870207,8.33272,2643.1,2642.9,0.28335831]
[1729322870520,8.33272,2643.1,2642.6,1.41773145]
[1729322870702,8.33272,2643.1,2642.7,0.73677698]
[1729322871010,3.78358,2643.0,2642.8,0.28337576]
[1729322871207,3.78358,2643.0,2642.9,0.28337576]
[1729322872322,4.54918,2643.1,2642.9,0.28337576]
[1729322872612,4.54918,2643.1,2643.0,0.28337576]
[1729322873376,8.33272,2643.1,2643.0,0.28343664]
[1729322873932,4.54918,2643.1,2643.0,0.28343664]
[1729322877546,4.54913,2643.1,2643.0,0.28351673]
[1729322880714,3.78367,2643.0,2642.6,0.786]
[1729322880874,3.78367,2643.0,2642.6,1.89871206]
[1729322881076,3.78367,2643.0,2642.7,0.73725405]
[1729322881343,3.78367,2643.0,2642.8,0.73725405]
[1729322881555,3.78367,2643.0,2642.9,0.28355925]
[1729322883323,3.78367,2643.0,2642.6,0.786]
[1729322883525,3.78367,2643.0,2642.9,0.28355585]
[1729322887861,3.78367,2643.0,2642.9,0.28355533]
[1729322891030,3.78367,2643.0,2642.5,4.97244456]
[1729322891259,3.78367,2643.0,2642.9,0.28356651]
[1729322898847,3.78367,2643.0,2642.9,0.28366369]
[1729322902946,3.78367,2643.0,2642.9,0.28368867]
[1729322910677,3.78367,2643.0,2642.6,1.18818456]
[1729322910879,3.78367,2643.0,2642.7,0.73761575]
[1729322911101,3.78367,2643.0,2642.8,0.73761575]
[1729322911291,3.78367,2643.0,2642.9,0.2836983]
[1729322913202,4.58917,2643.0,2642.9,0.2836983]
[1729322913405,3.784,2642.7,2642.6,1.18818456]
[1729322913606,4.5558,2642.7,2642.6,1.47188724]
[1729322913789,4.5558,2642.7,2642.6,0.28370268]
[1729322913973,6.35990365,2642.7,2642.6,0.28370268]
[1729322914179,6.35990365,2642.7,2642.1,1.99888456]
[1729322914374,3.78429,2642.5,2642.3,0.45377623]
[1729322914562,3.78429,2642.5,2642.4,0.28361026]
[1729322914964,5.14792765,2642.7,2642.4,0.28361026]
[1729322915204,3.78416,2642.6,2642.5,0.28361026]
[1729322915384,3.78416,2642.6,2642.2,0.45366325]
[1729322915702,3.78416,2642.6,2642.3,0.28354146]
[1729322915878,3.78416,2642.6,2642.4,0.28354146]
[1729322916080,3.78416,2642.6,2642.1,5.78365456]
[1729322916277,3.78416,2642.6,2642.2,1.31543215]
[1729322916480,3.78416,2642.6,2642.3,0.28348719]
[1729322916679,3.78416,2642.6,2642.4,0.28348719]
[1729322916893,3.78416,2642.6,2642.2,0.57836546]
[1729322917202,3.78416,2642.6,2642.3,0.28348516]
[1729322917403,3.78416,2642.6,2642.4,0.28348516]
[1729322917580,3.78416,2642.6,2642.2,0.57836546]
[1729322917781,3.78416,2642.6,2642.3,0.28344159]
[1729322917980,3.78416,2642.6,2642.4,0.28344159]
[1729322918281,3.78416,2642.6,2642.2,0.57836546]
[1729322918590,3.78416,2642.6,2642.3,0.28340399]
[1729322918767,3.78416,2642.6,2642.4,0.28340399]
[1729322918984,3.78416,2642.6,2642.2,0.57836546]
[1729322919185,3.78416,2642.6,2642.3,0.28340393]
[1729322919398,3.78416,2642.6,2642.2,0.57836546]
[1729322919585,3.78416,2642.6,2642.3,0.28337349]
[1729322919898,3.78416,2642.6,2642.2,0.57836546]
[1729322920119,3.7843,2642.5,2642.3,0.28337351]
[1729322920415,3.7843,2642.5,2642.4,0.28334485]
[1729322920821,3.7843,2642.5,2642.1,0.8107]
[1729322921010,3.7843,2642.5,2642.2,0.86173344]
[1729322921205,3.7843,2642.5,2642.3,0.28334598]
[1729322921424,3.7843,2642.5,2642.2,0.57838746]
[1729322921721,3.7843,2642.5,2642.3,0.28332208]
[1729322921940,3.7843,2642.5,2642.2,0.57838746]
[1729322922286,3.7843,2642.5,2642.3,0.28332465]
[1729322922487,3.7843,2642.5,2642.2,0.57838746]
[1729322922820,3.7843,2642.5,2642.3,0.28330881]
[1729322923118,3.7843,2642.5,2642.2,0.57838746]
[1729322923330,3.7843,2642.5,2642.3,0.28329148]
[1729322923520,3.7843,2642.5,2642.2,0.57838746]
[1729322923720,5.14792765,2642.7,2642.3,0.28328341]
[1729322923920,4.37612765,2642.7,2642.4,1.10747496]
[1729322924123,4.37612765,2642.7,2642.4,0.8242]
[1729322924336,4.37612765,2642.7,2642.5,0.2832665]
[1729322924492,4.37612765,2642.7,2642.4,0.8242]
[1729322924691,4.37612765,2642.7,2642.5,0.28326432]
[1729322924888,4.37612765,2642.7,2642.4,0.8242]
[1729322925087,4.37612765,2642.7,2642.5,0.28326463]
[1729322925289,4.37612765,2642.7,2642.4,1.77672038]
[1729322925490,4.37612765,2642.7,2642.5,0.28326514]
[1729322925789,4.37612765,2642.7,2642.4,1.77672038]
[1729322926101,4.37612765,2642.7,2642.5,0.28326783]
[1729322926297,4.37612765,2642.7,2642.4,1.77672038]
[1729322926524,4.37612765,2642.7,2642.5,0.28327145]
[1729322926824,4.37612765,2642.7,2642.4,1.77672038]
[1729322927033,4.37612765,2642.7,2642.5,0.283269]
[1729322927193,0.59212765,2642.7,2642.4,1.77672038]
[1729322927395,0.59212765,2642.7,2642.5,0.83939814]
[1729322927626,0.59212765,2642.7,2642.6,0.2832691]
[1729322929507,0.59212765,2642.7,2642.6,0.2832738]
[1729322929888,0.59212765,2642.7,2642.6,0.28327379]
[1729322932939,0.59212765,2642.7,2642.6,0.28329013]
[1729322933150,0.59212765,2642.7,2642.6,0.70361379]
[1729322933503,0.59212765,2642.7,2642.6,0.70360975]
[1729322933955,0.59212765,2642.7,2642.6,1.49900975]
[1729322935072,0.59212765,2642.7,2642.6,1.07868609]
[1729322940718,0.59212765,2642.7,2642.6,0.7954]
[1729322940914,0.59212765,2642.7,2642.6,1.07870022]
[1729322946828,0.59212765,2642.7,2642.6,1.53199091]
[1729322947031,0.59212765,2642.7,2642.6,4.86285022]
[1729322947626,0.59212765,2642.7,2642.6,5.31614371]
[1729322947942,0.59212765,2642.7,2642.6,7.58985189]
[1729322949454,0.59212765,2642.7,2642.6,6.40166733]
[1729322951341,0.59212765,2642.7,2642.6,6.40146658]
[1729322952931,0.59212765,2642.7,2642.6,7.58965114]
[1729322954871,0.59212765,2642.7,2642.6,6.40146658]
[1729322955066,0.59212765,2642.7,2642.6,7.58965114]
[1729322955268,0.59212765,2642.7,2642.6,6.40146658]
[1729322956033,0.59212765,2642.7,2642.6,7.58965114]
[1729322959156,0.59212765,2642.7,2642.6,7.58921827]
[1729322959483,0.8087,2643.4,2642.7,0.8142]
[1729322959684,0.59197581,2643.0,2642.8,4.06684157]
[1729322959985,3.78315,2643.3,2642.9,0.28306157]
[1729322960154,0.59198011,2643.1,2642.8,7.56754]
[1729322960371,0.59198011,2643.1,2642.9,0.28303223]
[1729322960589,0.59198011,2643.1,2642.8,4.74075246]
[1729322960774,0.59198011,2643.1,2642.9,0.28303216]
[1729322960958,0.59198011,2643.1,2643.0,0.28303216]
[1729322961159,1.34628011,2643.1,2643.0,0.28303216]
[1729322961472,1.34628011,2643.1,2642.7,3.78393]
[1729322961674,1.34628011,2643.1,2642.8,0.2830353]
[1729322961874,1.34628011,2643.1,2642.9,0.2830353]
[1729322962071,1.34628011,2643.1,2642.7,4.74096746]
[1729322962270,1.34628011,2643.1,2642.8,0.2830406]
[1729322962499,1.34628011,2643.1,2642.9,0.2830406]
[1729322962791,1.34628011,2643.1,2642.8,3.78386]
[1729322962991,1.34628011,2643.1,2642.9,0.28304984]
[1729322963172,1.34628011,2643.1,2642.8,3.78386]
[1729322963374,1.34628011,2643.1,2642.9,0.28306273]
[1729322963581,1.34628011,2643.1,2642.8,3.78386]
[1729322963786,1.34628011,2643.1,2642.9,0.28306343]
[1729322964009,1.34628011,2643.1,2642.7,0.95703746]
[1729322964160,1.34628011,2643.1,2642.8,0.28306294]
[1729322964494,1.34628011,2643.1,2642.9,0.28306294]
[1729322964699,1.34628011,2643.1,2642.7,3.784]
[1729322964896,1.34628011,2643.1,2642.8,0.2830831]
[1729322965099,1.34628011,2643.1,2642.9,0.2830831]
[1729322965308,1.34628011,2643.1,2642.8,3.78383]
[1729322965467,1.34628011,2643.1,2642.9,0.28309815]
[1729322965667,1.34628011,2643.1,2642.8,3.78383]
[1729322965907,1.34628011,2643.1,2642.9,0.283099]
[1729322966205,1.34628011,2643.1,2642.8,3.78383]
[1729322966366,1.34628011,2643.1,2642.9,0.28311989]
[1729322966566,1.34628011,2643.1,2642.8,3.78383]
[1729322966766,1.34628011,2643.1,2642.9,0.28312145]
[1729322966991,1.34628011,2643.1,2642.8,3.78383]
[1729322967195,1.34628011,2643.1,2642.9,0.28311887]
[1729322967401,1.34628011,2643.1,2642.8,7.56754]
[1729322967601,1.34628011,2643.1,2642.9,0.28314344]
[1729322967814,1.34628011,2643.1,2642.8,3.78377]
[1729322968006,1.34628011,2643.1,2642.9,0.28314344]
[1729322968325,1.34628011,2643.1,2642.8,3.78377]
[1729322968521,1.34628011,2643.1,2642.9,0.28317627]
[1729322968708,1.34628011,2643.1,2642.8,3.78377]
[1729322969035,1.34628011,2643.1,2642.9,0.28317604]
[1729322969186,1.34628011,2643.1,2642.8,3.78377]
[1729322969386,1.34628011,2643.1,2642.9,0.28321692]
[1729322969611,1.34628011,2643.1,2642.8,3.78377]
[1729322969816,1.34628011,2643.1,2642.9,0.28321656]
[1729322970124,1.34628011,2643.1,2642.8,3.78377]
[1729322970326,1.34628011,2643.1,2642.9,0.2832316]
[1729322970528,1.34628011,2643.1,2642.8,3.78377]
[1729322970893,1.34628011,2643.1,2642.9,0.28323164]
[1729322971093,1.34628011,2643.1,2642.8,3.78377]
[1729322971435,1.34628011,2643.1,2642.9,0.28323503]
[1729322971640,1.34628011,2643.1,2642.8,3.78377]
[1729322971950,1.34628011,2643.1,2642.9,0.28324586]
[1729322972109,1.34628011,2643.1,2642.8,3.78377]
[1729322972310,1.34628011,2643.1,2642.9,0.28324783]
[1729322972515,1.34628011,2643.1,2643.0,0.28324783]
[1729322974204,5.12972011,2643.1,2642.6,4.97223456]
[1729322974540,5.12972011,2643.1,2642.7,0.7365533]
[1729322974743,5.12972011,2643.1,2642.8,0.28328973]
[1729322975035,1.34628011,2643.1,2642.9,0.28328973]
[1729322975379,1.34628011,2643.1,2642.7,0.45328422]
[1729322975556,1.34628011,2643.1,2642.8,0.28331758]
[1729322975875,1.34628011,2643.1,2642.9,0.28331758]
[1729322976060,1.34628011,2643.1,2642.7,0.45330394]
[1729322976247,1.34628011,2643.1,2642.8,0.28331491]
[1729322976446,1.34628011,2643.1,2642.9,0.28331491]
[1729322976644,1.34628011,2643.1,2642.7,3.78398]
[1729322976872,1.34628011,2643.1,2642.8,0.28333311]
[1729322977038,1.34628011,2643.1,2642.9,0.28333311]
[1729322977241,1.34628011,2643.1,2642.7,3.78398]
[1729322977435,1.34628011,2643.1,2642.8,0.28335025]
[1729322977763,1.34628011,2643.1,2642.9,0.28335025]
[1729322977962,1.34628011,2643.1,2642.7,3.78398]
[1729322978146,1.34628011,2643.1,2642.8,0.28335025]
[1729322978468,1.34628011,2643.1,2642.7,3.78398]
[1729322978673,1.34628011,2643.1,2642.8,0.28337281]
[1729322978870,1.34628011,2643.1,2642.7,3.78398]
[1729322978871,1.34628011,2643.1,2642.9,0.28337281]
[1729322979087,1.34628011,2643.1,2642.7,3.78398]
[1729322979263,1.34628011,2643.1,2642.8,0.73678181]
[1729322979464,1.34628011,2643.1,2642.9,0.28337762]
[1729322979674,1.34628011,2643.1,2643.0,0.28337762]
[1729322981890,1.34628011,2643.1,2643.0,0.28343224]
[1729322985556,1.34628011,2643.1,2642.6,4.97229456]
[1729322985752,1.34628011,2643.1,2643.0,0.28349307]
[1729322989872,1.34628011,2643.1,2642.6,4.97229456]
[1729322990073,5.12971011,2643.1,2642.7,0.28355228]
[1729322990273,5.12971011,2643.1,2642.8,0.73723555]
[1729322990474,5.12971011,2643.1,2642.9,0.73726629]
[1729322990803,5.12971011,2643.1,2643.0,0.28355228]
[1729322991791,6.02101012,2643.1,2643.0,0.28355228]
[1729322992103,3.78368,2643.0,2642.5,2.00238456]
[1729322992310,3.78368,2643.0,2642.6,0.73739778]
[1729322992491,4.57501,2642.9,2642.7,0.73739778]
[1729322992669,4.57501,2642.9,2642.8,0.28361453]
[1729322993310,4.57501,2642.9,2642.5,2.00238456]
[1729322993603,4.57501,2642.9,2642.6,0.73748181]
[1729322993787,4.57501,2642.9,2642.7,0.28364824]
[1729322993991,4.57501,2642.9,2642.8,0.28364824]
[1729322997199,4.57501,2642.9,2642.8,0.28353701]
[1729323001709,4.57501,2642.9,2642.5,0.8142]
[1729323001906,4.57501,2642.9,2642.6,0.73702623]
[1729323002133,4.57501,2642.9,2642.7,0.28347299]
[1729323002331,4.57501,2642.9,2642.8,0.28347299]
[1729323003650,4.57501,2642.9,2642.5,0.8142]
[1729323003852,4.57501,2642.9,2642.8,0.28345466]
[1729323007849,4.57501,2642.9,2642.5,0.8142]
[1729323008037,4.57501,2642.9,2642.6,0.73699743]
[1729323008226,4.57501,2642.9,2642.7,0.28346143]
[1729323008420,4.57501,2642.9,2642.8,0.28346143]
[1729323009531,4.57501,2642.9,2642.3,2.00188456]
[1729323009532,3.78404,2642.7,2642.3,2.00188456]
[1729323009736,3.78404,2642.7,2642.2,1.58424608]
[1729323009737,0.7762,2642.6,2642.4,0.73700559]
[1729323009964,0.7762,2642.6,2642.5,0.28346369]
[1729323010636,4.56035,2642.6,2642.5,0.28346369]
[1729323011043,4.56035,2642.6,2642.5,0.28344318]
[1729323011243,4.56035,2642.6,2642.1,4.97304456]
[1729323011244,4.56035,2642.6,2642.2,0.4535176]
[1729323011428,4.56035,2642.6,2642.3,0.28341069]
[1729323011747,4.56035,2642.6,2642.4,0.28341069]
[1729323011957,4.56035,2642.6,2642.1,4.97304456]
[1729323012152,4.56035,2642.6,2642.2,0.73686597]
[1729323012335,4.56035,2642.6,2642.3,0.28340999]
[1729323012533,4.56035,2642.6,2642.4,0.28340999]
[1729323012763,4.56035,2642.6,2642.1,6.08864362]
[1729323012965,4.56035,2642.6,2642.2,0.73677319]
[1729323013277,4.56035,2642.6,2642.3,0.2833743]
[1729323013424,4.56035,2642.6,2642.4,0.2833743]
[1729323013630,4.56035,2642.6,2642.1,6.08864362]
[1729323013833,4.56035,2642.6,2642.2,1.80544625]
[1729323014029,4.56035,2642.6,2642.3,0.28335073]
[1729323014282,4.56035,2642.6,2642.4,0.28335073]
[1729323014431,4.56035,2642.6,2642.2,1.06873436]
[1729323014633,4.56035,2642.6,2642.3,0.28333101]
[1729323014961,4.56035,2642.6,2642.4,0.28333103]
[1729323015127,4.56035,2642.6,2642.2,1.06873436]
[1729323015327,4.56035,2642.6,2642.3,0.28331359]
[1729323015527,4.56035,2642.6,2642.4,0.28331359]
[1729323015735,4.56035,2642.6,2642.2,1.06873436]